Cogmind - Beta 15 @@@ ROGUE MODE // 2025.09.12 @ 16:18:09 Player: Spoodle Result: Destroyed by P-60 Hacker with Shock Rifle Performance ------------- Evolutions (0) 0 Regions Visited (3) 600 Robots Destroyed (54) 270 Value Destroyed (1161) 1161 Prototype IDs (13) 260 Alien Tech Used (0) 0 Bonus (0) 0 TOTAL SCORE: 2291 Bonus ------- None Cogmind --------- Core Integrity 0/250 Matter 159/300 Energy 79/100 System Corruption 4% Temperature Cool (0) Movement Rolling (95) Location -8/Recycling Parts ------- > --- POWER (1) -------- (None) > --- PROPULSION (2) --- Wheel Subdweller Monowheel > --- UTILITY (2) ------ (None) > --- WEAPON (2) ------- Heavy Assault Rifle > --- INVENTORY (5) ---- Gun Armor Scrap Shield Subdweller Machine Gun Subdweller Shrapnel Launcher Peak State ------------ > --- POWER ------------ Improved Ion Engine > --- PROPULSION ------- Light Treads Compact Wheel > --- UTILITY ---------- High-capacity Storage Unit Medium Armor Plating > --- WEAPON ----------- Particle Cannon Heavy Assault Rifle > --- INVENTORY -------- Subdweller Power Source Subdweller Power Source Wheel Subdweller Monowheel Cooling System Huge Storage Unit Seismic Detector Medium Armor Plating Gun Armor Scrap Shield Subdweller Laser Heavy Assault Rifle Heavy Assault Rifle Subdweller Machine Gun Subdweller Machine Gun Subdweller Machine Gun Grenade Launcher Subdweller Shrapnel Launcher Multitool [Rating: 15] Favorites ----------- Power Ion Engine Engine Ion Engine Propulsion Compact Wheel Treads Light Treads Leg Aluminum Leg Wheel Compact Wheel Utility High-capacity Storage Unit Device Seismic Detector Storage High-capacity Storage Unit Protection Medium Armor Plating Weapon Heavy Assault Rifle Energy Gun Small Laser Energy Cannon Particle Cannon Ballistic Gun Heavy Assault Rifle Ballistic Cannon Light Cannon Launcher Grenade Launcher Build | -11 -10 -10 -8 ------- Run | Yrd Mat Sub Rec Slots Evolved . | . . . . Power . | . . . . Propulsion . | . . . . Utility . | . . . . Weapon . | . . . . Parts Attached 34 | 7 12 10 5 Power 3 | 1 1 1 . Engine 3 | 1 1 1 . Core . | . . . . Reactor . | . . . . Propulsion 9 | 2 3 2 2 Treads 3 | . 1 2 . Leg 2 | 2 . . . Wheel 4 | . 2 . 2 Hover . | . . . . Flight . | . . . . Utility 8 | 2 3 2 1 Device 2 | 1 1 . . Storage 2 | 1 1 . . Processor . | . . . . Hackware . | . . . . Protection 4 | . 1 2 1 Artifact . | . . . . Weapon 14 | 2 5 5 2 Energy Gun 1 | 1 . . . Energy Cannon 2 | . 1 1 . Ballistic Gun 7 | 1 2 3 1 Ballistic Cannon 2 | . 2 . . Launcher 2 | . . 1 1 Special Weapon . | . . . . Impact Weapon . | . . . . Slashing Weapon . | . . . . Piercing Weapon . | . . . . Special Melee Weapon . | . . . . Unidentified Prototypes . | . . . . Parts Lost 6 | . . 1 5 Power 1 | . . . 1 Propulsion 2 | . . . 2 Utility 1 | . . . 1 Weapon 2 | . . 1 1 Highest Loss Streak 5 | . . 1 5 To Critical Strikes . | . . . . Average Backups 15 | 5 12 18 18 Power 1 | . 1 1 2 Propulsion 2 | 1 1 2 1 Utility 5 | . 4 5 5 Weapon 6 | 1 4 7 7 Tool/Special . | . . . . Unused Backups 25 | . 10 5 10 Power 6 | . 2 2 2 Propulsion 2 | . 1 1 . Utility 9 | . 4 1 4 Weapon 7 | . 3 1 3 Tool/Special 1 | . . . 1 Average Slot Usage (%) 99 | . 100 100 87 Engine 13 | . 14 14 7 Treads 12 | . 10 14 9 Leg 3 | . 7 . . Wheel 12 | . 10 14 16 Device 6 | . 5 7 . Storage 14 | . 14 14 14 Protection 7 | . 8 6 14 Energy Cannon 6 | . 3 8 . Ballistic Gun 14 | . 5 19 23 Ballistic Cannon 7 | . 18 . . Peak Build Rating 15 | 7 13 15 15 Average Rating 11 | 5 9 13 13 On Entrance 8 | . 7 12 15 Naked Turns . | . . . . Heaviest Build 61 | 13 59 61 60 Greatest Support 20 | 20 20 16 16 Greatest Overweight (x) 3 | . 3 3 3 Average Overweight (x) 2 | . 2 3 3 Largest Inventory Capacity 20 | 8 20 20 20 Average Capacity 18 | 7 16 20 20 Most Carried 20 | 8 20 20 20 Average Carried 16 | 5 12 19 18 Final Capacity 20 | 8 20 20 5 Final Carried 20 | 7 20 20 5 Class Distribution -------------------- 100% | Mutant Dominant Class ---------------- Mutant | -10/Materials Mutant | -10/Subcaves Mutant | -8/Recycling Resources | -11 -10 -10 -8 ----------- Run | Yrd Mat Sub Rec Matter Collected 1338 | 261 616 461 . Remotely . | . . . . Salvage Created 1415 | 178 801 246 190 Parts 94 | 11 56 20 7 Haulers Intercepted 2 | . 2 . . Recyclers Shooed 2 | . 2 . . Parts Field Recycled . | . . . . Retrieved Matter . | . . . . Parts Self-Destructed 6 | . . 6 . Prevented . | . . . . Kills | -11 -10 -10 -8 ------- Run | Yrd Mat Sub Rec Combat Hostiles Destroyed 34 | . 17 11 6 Guns 6 | . . 4 2 Cannons 18 | . 17 1 . AOE 10 | . . 6 4 Classes Destroyed 15 | 3 6 3 3 Worker 4 | 1 3 . . Builder 3 | . 2 . 1 Tunneler 4 | 3 . . 1 Hauler 2 | . 2 . . Recycler 3 | 1 2 . . Operator 1 | . 1 . . Watcher 3 | . 3 . . Swarmer 13 | . 6 7 . Grunt 12 | . 11 . 1 Brawler 1 | . . . 1 Sentry 1 | . . 1 . Demolisher 1 | . . . 1 Programmer 3 | . . . 3 Artisan 1 | . . 1 . Subdweller 3 | . . 3 . Best Kill Streak 8 | 2 8 4 8 Combat Bots Only 6 | . 4 4 6 Max Kills in Single Turn 2 | 1 1 2 2 Gunslinging . | . . . . Exploded 2 | . . 2 2 Melee . | . . . . Uniques/NPCs Destroyed . | . . . . Combat | -11 -10 -10 -8 -------- Run | Yrd Mat Sub Rec Hostile Shots Fired 177 | . 57 58 62 Missed 48 | . 9 22 17 Hits 129 | . 48 36 45 Melee 1 | . . . 1 Projectile 128 | . 48 36 44 AOE 1 | . . 1 . Critical Strikes 6 | . 1 1 4 Damage Taken 1732 | . 473 477 782 Core 262 | . 59 24 179 Absorbed by Shields . | . . . . Core Remaining (%) 100 | 100 . . . Volleys Fired 184 | 13 82 79 10 Largest 2 | 2 2 2 2 Hottest 98 | 60 98 91 53 Shots Fired 267 | 26 130 94 17 Gun 94 | 26 22 32 14 Cannon 165 | . 108 57 . Launcher 8 | . . 5 3 Special . | . . . . Kinetic 159 | 13 97 32 17 Thermal 103 | 13 33 57 . Explosive 5 | . . 5 . Electromagnetic . | . . . . Robot Hit Streak 14 | 8 14 7 5 Robot Miss Streak 4 | 2 4 4 1 Penetration Max . | . . . . Secondary Targets . | . . . . Shots Hit Robots 127 | 19 71 25 12 Core Hits 74 | 10 31 15 18 Critical Kills . | . . . . Critical Parts Destroyed 1 | 1 . . . Critical Strikes 4 | 1 3 . . Destroy 1 | 1 . . . Blast 3 | . 3 . . Melee Attacks . | . . . . Impact . | . . . . Slashing . | . . . . Piercing . | . . . . Sneak Attacks . | . . . . Combat Hostiles . | . . . . Follow-up Attacks . | . . . . Damage Inflicted 3697 | 179 1414 792 1312 Guns 914 | 168 220 290 236 Cannons 1219 | . 1158 61 . Explosions 1517 | . . 441 1076 Melee . | . . . . Ramming 47 | 11 36 . . Kinetic 2592 | 83 907 290 1312 Thermal 617 | 85 471 61 . Explosive 441 | . . 441 . Electromagnetic . | . . . . Impact . | . . . . Slashing . | . . . . Piercing . | . . . . Highest Corruption 3 | . . . 3 Average Corruption 2 | . . . 2 Corruption Purged . | . . . . Corruption Blocked . | . . . . Effects 1 | . . . 1 Parts Rejected 1 | . . . 1 Overload Shots . | . . . . Overflow Damage 95 | . 11 11 73 Projectiles 11 | . 11 . . Explosions 84 | . . 11 73 Melee . | . . . . Knockbacks 4 | . 4 . . Impact . | . . . . Kinetic 4 | . 4 . . Secondary . | . . . . Self-Inflicted Damage 117 | . 3 . 114 Shots 3 | . . . 3 Rammed 2 | . 2 . . Targets Rammed 13 | 1 12 . . Kicked 11 | 1 10 . . Crushed . | . . . . Highest Temperature 214 | 60 214 . 52 Average Temperature 52 | 32 58 . 24 Received Heat Transfer 294 | . 117 42 135 Siege Activations . | . . . . Martial Activations . | . . . . Shielding Activations . | . . . . Robots Disrupted . | . . . . Combat Hostiles . | . . . . Robots Corrupted . | . . . . Combat Hostiles . | . . . . Parts Fried . | . . . . Impact Corruptions . | . . . . Robots Melted . | . . . . Combat Hostiles . | . . . . Parts Melted . | . . . . Heat Transferred 1162 | 200 851 111 . Parts Sabotaged . | . . . . Parts Stolen . | . . . . Parts Stripped . | . . . . Power Chain Reactions . | . . . . Alert | -11 -10 -10 -8 ------- Run | Yrd Mat Sub Rec Maximum Alert Level 1 | . 1 . . Low Security (%) 72 | 100 69 . 100 Level 1 27 | . 30 . . Level 2 . | . . . . Level 3 . | . . . . Level 4 . | . . . . Level 5 . | . . . . High Security . | . . . . Max Security . | . . . . Peak Influence 280 | 10 280 . 141 Initial 3 | . 3 . . Average 96 | 1 104 . 82 Influence Increases 1064 | 25 593 245 201 Destroy 0b10 Robot/C 620 | . 340 160 120 Destroy 0b10 Robot/NC 125 | 25 65 . 35 Destroy Leader 90 | . 80 10 . Successful Hack 15 | . 15 . . Select Force Hacks 60 | . 60 . . Disable Machine 45 | . 30 . 15 Destroy Structure 34 | . 3 . 31 Lose Combat Pursuer 75 | . . 75 . Influence Decreases 933 | 20 598 245 70 Entered New Map 2 | . 2 . . Time Decay 721 | 20 446 235 20 Lost Part 60 | . . 10 50 Purge Threat 150 | . 150 . . Squads Dispatched 4 | . 4 . . Investigation 3 | . 3 . . Extermination . | . . . . Reinforcement 1 | . 1 . . Assault . | . . . . Garrison . | . . . . Intercept . | . . . . Searches Triggered . | . . . . Construction Impeded . | . . . . Haulers Reinforced . | . . . . Active Scanning Responses . | . . . . Cargo Convoy Interrupts . | . . . . Stealth | -11 -10 -10 -8 --------- Run | Yrd Mat Sub Rec Distress Signals 1 | . 1 . . Communications Jammed . | . . . . Distress Signals . | . . . . Times Spotted 50 | . 24 17 9 Peak Tracking Total 8 | . 4 5 8 Tactical Retreats 2 | . . 2 . Traps | -11 -10 -10 -8 ------- Run | Yrd Mat Sub Rec Traps Triggered 2 | . 2 . . Indirectly . | . . . . Trap Hack Attempts . | . . . . Triggered . | . . . . Disarmed . | . . . . Reprogrammed . | . . . . Reused . | . . . . Traps Extracted . | . . . . Installed . | . . . . Triggered . | . . . . Machines | -11 -10 -10 -8 ---------- Run | Yrd Mat Sub Rec Machines Disabled 4 | . 2 1 1 Max in Single Turn 1 | . 1 1 1 Machines Repaired . | . . . . Machines Dismantled . | . . . . Machines Sabotaged . | . . . . Overloaded Fab Kills . | . . . . Hacking | -11 -10 -10 -8 --------- Run | Yrd Mat Sub Rec Machines Accessed 12 | . 10 2 . Terminals 7 | . 7 . . Fabricators . | . . . . Repair Stations 1 | . 1 . . Recycling Units 2 | . 2 . . Scanalyzers . | . . . . Garrison Access . | . . . . Total Hacks 30 | . 24 6 . Successful 18 | . 12 6 . Failed 12 | . 12 . . Catastrophic 2 | . 2 . . Database Lockouts . | . . . . Manual 20 | . 20 . . Terminals 21 | . 21 . . Fabricators . | . . . . Repair Stations 1 | . 1 . . Recycling Units 2 | . 2 . . Scanalyzers . | . . . . Garrison Access . | . . . . Terminal Hacks 9 | . 3 6 . Record 5 | . . 5 . Prototype ID Bank 1 | . 1 . . Unreport Threat 1 | . 1 . . Locate Traps 1 | . 1 . . Proto ID Catalog 1 | . . 1 . Fabricator Hacks . | . . . . Repair Station Hacks . | . . . . Recycling Unit Hacks . | . . . . Scanalyzer . | . . . . Garrison Access Hacks . | . . . . Unauthorized Hacks 9 | . 9 . . Terminals 7 | . 7 . . Botnet 2 | . 2 . . Skim 5 | . 5 . . Fabricators . | . . . . Repair Stations . | . . . . Recycling Units 2 | . 2 . . Tunnel 2 | . 2 . . Scanalyzers . | . . . . Garrison Access . | . . . . Data Cores Recovered . | . . . . Used . | . . . . Hacking Detections 8 | . 8 . . Full Trace Events . | . . . . Feedback Events . | . . . . Feedback Blocked . | . . . . Robot Schematics Acquired . | . . . . Robots Built . | . . . . Authchips . | . . . . Time . | . . . . Total Robot Build Rating . | . . . . Part Schematics Acquired . | . . . . Parts Built . | . . . . Authchips . | . . . . Time . | . . . . Total Part Build Rating . | . . . . Parts Repaired . | . . . . Time . | . . . . Parts Recycled . | . . . . Recycled Matter . | . . . . Retrieved Matter . | . . . . Retrieved Components . | . . . . Parts Scanalyzed . | . . . . Part Schematics Acquired . | . . . . Parts Damaged . | . . . . Bothacking | -11 -10 -10 -8 ------------ Run | Yrd Mat Sub Rec Used RIF Installer . | . . . . Robots Hacked . | . . . . Non-combat . | . . . . Combat . | . . . . Robot Hacks Applied . | . . . . Relay Couplers Released . | . . . . Fabnet Peak Effective % . | . . . . Robots Rewired . | . . . . Allies Hacked . | . . . . Hacks Repelled . | . . . . Allies | -11 -10 -10 -8 -------- Run | Yrd Mat Sub Rec Total Allies . | . . . . Largest Group . | . . . . Highest-Rated Group . | . . . . Highest-Rated Ally . | . . . . Total Orders . | . . . . Ally Attacks . | . . . . Total Damage . | . . . . Kills . | . . . . Allies Corrupted . | . . . . Allies Melted . | . . . . Intel | -11 -10 -10 -8 ------- Run | Yrd Mat Sub Rec Active Infowar (turns) 1908 | 65 555 1288 . Seismic 1908 | 65 555 1288 . Robot Analysis Total . | . . . . Derelict Logs Recovered 2 | . . 2 . Drone Launches . | . . . . Drone Recoveries . | . . . . Exploration | -11 -10 -10 -8 ------------- Run | Yrd Mat Sub Rec Turns Passed 4081 | 113 1540 2378 50 Spaces Moved 2301 | 52 787 1453 9 Core 10 | 10 . . . Treads . | . . . . Legs 289 | 42 247 . . Wheels 2002 | . 540 1453 9 Hover . | . . . . Flight . | . . . . Fastest Speed 50 | 50 120 145 145 Average Speed 141 | 106 137 145 145 Slowest Speed 145 | 120 145 145 145 Overloaded Moves . | . . . . Propulsion Burnouts . | . . . . Robots Hopped . | . . . . Potential Cave-ins . | . . . . Cave-ins Triggered . | . . . . Exploration Rate (%) 48 | 5 98 81 10 Regions Visited 3 Branch Regions 2 Pre-discovered Areas 5 | . 3 2 . Known Exits Taken 1 | . 1 . . Unknown Exits Taken 2 | 1 . 1 . Scrap Searched 11 | . . 11 . Spaces Dug 9 | . . 9 . Terrain Destroyed 64 | . . 29 35 Melee . | . . . . Projectile 6 | . . 5 1 AOE 58 | . . 24 34 Terrain Rammed . | . . . . Walls Destroyed . | . . . . Machines Disabled . | . . . . Actions | -11 -10 -10 -8 --------- Run | Yrd Mat Sub Rec Total 2853 | 85 1116 1624 28 Wait 199 | . 165 34 . Move 2299 | 52 786 1452 9 Hop . | . . . . Pick Up 54 | 13 28 13 . Fast Attach 5 | 1 4 . . Attach 12 | 6 1 1 4 Detach 1 | . 1 . . Swap 52 | . 18 31 3 Drop 35 | . 19 14 2 Fire 184 | 13 82 79 10 Melee . | . . . . Ram 2 | . 2 . . Kick 10 | . 10 . . Crush . | . . . . Escape Stasis . | . . . . Rewire . | . . . . Trap . | . . . . Miscellaneous . | . . . . Route ------- -11/Scrapyard -10/Materials (discovered 6 exits: *Mat x3 / [*Min x2] / *Sub) -10/Subcaves (discovered 3 exits: [*Mat x2] / [*Rec]) -8/Recycling (discovered 1 exit: Fac) History --------- Turn | Location | Event 5 | -11/Scrapyard | Discovered new exit (range 15) 114 | -11/Scrapyard | Entered Materials 213 | -10/Materials | Discovered new exit (range 13) 308 | -10/Materials | Build established: Mutant 366 | -10/Materials | Discovered new exit (range 14) 725 | -10/Materials | Discovered new exit (range 11) 808 | -10/Materials | Discovered new exit (range 16) 886 | -10/Materials | Learned Storage trap positions 921 | -10/Materials | Learned location of 1 exit from Recycling 961 | -10/Materials | Learned Storage trap positions 966 | -10/Materials | Identified exit to Materials 971 | -10/Materials | Identified exit to Subcaves 971 | -10/Materials | Learned location of 1 exit from Materials 984 | -10/Materials | Loaded intel: 13 trap records 1006 | -10/Materials | Learned Storage trap positions 1654 | -10/Materials | Entered Subcaves 2120 | -10/Subcaves | Discovered new exit (range 16) 2193 | -10/Subcaves | Shifting Twisted Machinery released Sub. Laser 2203 | -10/Subcaves | A swath of the cavern ceiling suddenly collapsed 2342 | -10/Subcaves | Disturbed a concealed Subdweller 2932 | -10/Subcaves | Discovered new exit (range 8) 3204 | -10/Subcaves | Discovered new exit (range 14) 3249 | -10/Subcaves | Learned Materials stockpile data 3276 | -10/Subcaves | Visited 4L-MR0's lab 3292 | -10/Subcaves | Found Gun Armor 3825 | -10/Subcaves | Visited Clippyterm 3829 | -10/Subcaves | Learned location of Deep Caves (-6) 3988 | -10/Subcaves | Shifting Twisted Machinery released Sub. Shrapnel Launcher 4032 | -10/Subcaves | Entered Recycling 4033 | -8/Recycling | Identified exit to Factory 4055 | -8/Recycling | Core integrity fell below 50% 4070 | -8/Recycling | Core integrity fell below 20% 4082 | -8/Recycling | Destroyed by P-60 Hacker with Shock Rifle Last Messages --------------- 04053_ D-53 Grenadier destroyed. 04053_ U-05 Engineer destroyed. 04053_ Imp. Ion Engine destroyed. 04053_ Destroyed Imp. Ion Engine. 04056_ Destroyed Gravmag System. 04056_ Med. Armor Plating destroyed. 04066_ Lgt. Treads destroyed. 04066_ Critical hit (Burn: +37). 04066_ Com. Wheel destroyed. 04066_ System corrupted by crushing effect (+2). 04066_ Knocked back. 04066_ B-36 Bruiser destroyed. 04074_ P-60 Hacker destroyed. 04075_ R-06 Scavenger collects Mic. Nuclear Core. 04075_ Sub. Machine Gun destroyed. 04078_ Critical hit (Burn: +37). 04078_ R-06 Scavenger destroyed. 04079_ System corrupted: Hvy. Assault Rifle rejected. 04081_ Dropped Med. Armor Plating. 04082_ Dropped Hcp. Storage Unit. Map ----- +----------------------------------------------------+ | ?????????????????????????????????????????????????? | | ?????????????????????????????????????????????????? | | ?????????????????????????????????????????????????? | | ?????????????????????????????????????????????????? | | ?????????????????????????????????????????????????? | | ?????????????????????????????????????????????????? | | ?????????????????????????????????????????????????? | | ?????????????????????????????????????????????????? | | ?????????????????????????????????????????????????? | | ?????????????????????????????????????????????????? | | ?????????????????????????????????????????????????? | | ?????????????????????????????????????????????????? | | ?????????????????????????????????????????????????? | | ?????????????????????????????????????????????????? | | ?????????????????????????????????????????????????? | | ?????????????????????????????????????????????????? | | ?????????????????????#####???????????????????????? | | ???????????????#?????# #???????????????????????? | | ???????????#####r###?# #?####??????????????????? | | ???????????# ?# ## # ###????????????????? | | ???????????# # # ;;;;;##???????????????? | | ???????????# # # ; #???????????????? | | ???????????# ; # ;% ##??????????????? | | ???????????# # ]! #??????????????? | | ???????????# # ![!|* [ #??????????????? | | ???????????# ?# *!@/% %[ ;#??????????????? | | ???????????# ?# [!] %%=* ;#??????????????? | | ???????????##+#####?#; Y [ !% ;#??????????????? | | ????????????????????## T *%p ]%; +???????????? | | ?????????????????????# ""=%u ;####???????????? | | ?????????????????????# ##; %=;#??????????????? | | ????????????????????? "?; ;#??????????????? | | ????????????????????## Y?#Y l ##??????????????? | | ?????????????????????# "??! ] #???????????????? | | ????????????????????? #?? t g!#???????????????? | | ????????????????????? #?? t #???????????????? | | ???????????????????? #??######???????????????? | | ????????????????????######???????????????????????? | | ?????????????????????????????????????????????????? | | ?????????????????????????????????????????????????? | | ?????????????????????????????????????????????????? | | ?????????????????????????????????????????????????? | | ?????????????????????????????????????????????????? | | ?????????????????????????????????????????????????? | | ?????????????????????????????????????????????????? | | ?????????????????????????????????????????????????? | | ?????????????????????????????????????????????????? | | ?????????????????????????????????????????????????? | | ?????????????????????????????????????????????????? | | ?????????????????????????????????????????????????? | +----------------------------------------------------+ Best States ------------- Heat Dissipation 39 Energy Generation 12 Energy Capacity 265 Matter Stores 300 Matter Capacity 300 Sight Range 16 Terrain Scan Density 10 Armor Coverage 225 Evasion (%) 55 Recoil Reduction 1 Item Schematics ----------------- None Robot Schematics ------------------ None Fabricated ------------ Nothing Repaired ---------- Nothing Alien Tech Used ----------------- None Achievements -------------- None Challenges ------------ None Game ------ Seed HackingWarpExtractor Manual? 0 Play Time 00:31:04 Cumulative 505.6 hours Start 2025.09.12 @ 15:44:58 End 2025.09.12 @ 16:18:09 Sessions 3 Manual Loads 0 Difficulty Rogue Special Mode None Game No. 192 Rogue 192 Adventurer 0 Explorer 0 Win Type - Total 22 Types 13/1/4/2/0/1/0/1/0/0 Lore% 89 Gallery% 83 Achievement% 73 Wizard Run 0 Options --------- Layout 0 ASCII 0 Keyboard 0 Movement Numpad Keybinds 0 Fullscreen 2 Font 18/SmallcapsGlow Map View 76x50 Zoom Use 0% Tactical HUD 1 Map Filters NONE Filters NONE Steam 1 RUN: d5bb6d4c-5473-4d5b-b287-ab40a79611b5